[Event "US Masters 2024"]
[Site "Charlotte"]
[Date "2024.11.29"]
[Round "4.7"]
[White "Park, Evan"]
[Black "Matviishen, Viktor"]
[Result "1-0"]
[ECO "B94"]
[WhiteElo "2375"]
[BlackElo "2566"]
[Annotator "TA"]
[PlyCount "107"]
[EventDate "2024.09.23"]
[EventType "swiss"]
[EventCountry "USA"]
[SourceTitle "playchess.com"]
[Source "ChessBase"]
[SourceQuality "1"]
[TimeControl "5400+30"]

{[%evp 11,107,8,27,0,16,0,0,7,4,10,10,13,12,7,11,10,23,0,0,0,1,6,12,14,10,1,6,8,14,0,0,8,59,55,81,31,126,134,149,130,313,218,274,275,294,284,272,200,205,198,192,192,243,243,243,171,299,284,300,308,318,318,310,310,310,310,281,266,252,244,237,231,581,602,3480,3935,1632,1590,982,0,517,214,214,214,214,187,1600,1558,1245,907,29962,29965,12804,6751,29981,29983,29983,29984]} 1. e4 {[%emt 0:00:03]} c5 {[%emt 0:13:00]} 2. Nf3 {[%emt 0:00:04]} d6 {[%emt 0:00:06]} 3. d4 {[%emt 0:00:02]} cxd4 {[%emt 0:00:06]} 4. Nxd4 {[%emt 0:00:02]} Nf6 {[%emt 0:00:06]} 5. Nc3 {[%emt 0:00:04]} a6 {[%emt 0:00:05]} 6. Bg5 {[%emt 0:00:05]} Nbd7 {[%emt 0:00:41]} 7. Be3 {[%emt 0:00:05]} Qc7 {[%emt 0:02:27]} 8. g4 {[%emt 0:01:26]} h6 {[%emt 0:01:40]} 9. a4 {[%emt 0:00:12] The position is equal.} Ne5 {[%emt 0:03:14]} 10. h3 {[%emt 0:00:06]} Bd7 {[%emt 0:01:57]} 11. f4 {[%emt 0:00:12]} Nc4 {[%emt 0:00:06]} 12. Bxc4 {[%emt 0:00:04]} Qxc4 {[%emt 0:00:04]} 13. Qd3 {[%emt 0:00:09]} Rc8 {[%emt 0:03:40]} (13... Qxd3 {simplifies} 14. cxd3 e5 15. Nde2 Be7) 14. e5 {[%emt 0:01:16]} Qxd3 {[%emt 0:13:45]} 15. cxd3 {[%emt 0:00:05]} dxe5 {[%emt 0:00:02]} 16. fxe5 {[%emt 0:00:09]} Nh7 {[%emt 0:00:14][%cal Bf6h7,Bh7f8,Bf8g6][%mdl 32]} 17. Ke2 {[%emt 0:00:13]} e6 {[%emt 0:00:24] Prevents Nd5.} 18. h4 {[%emt 0:00:57]} Be7 {[%emt 0:12:14] [#] Prevents g5.} 19. g5 $1 {[%emt 0:01:23]} h5 {[%emt 0:01:28]} 20. Ne4 {[%emt 0:03:46]} Nf8 {[%emt 0:01:07]} 21. Rac1 {[%emt 0:03:43][%cal Ba1c1,Bc1c7,Bc7b7][%mdl 32] White wants to play Rxc8+.} Rd8 {[%emt 0:05:42] Black is weak on the dark squares} (21... Rb8 $11) 22. Rc7 $14 {[%emt 0:12:25]} Ng6 {[%emt 0:00:29]} 23. Rxb7 {[%emt 0:02:41] Hoping for Rc1. White is much more active.} O-O {[%emt 0:09:10] White stays focused until the end.} (23... Nxe5 $14 24. Rc1 Bxa4) 24. Rc1 $1 $16 {[%emt 0:01:58]} Bxa4 {[%emt 0:11:58]} 25. Rcc7 {[%emt 0:01:59] Against Rd7} Rfe8 $2 {[%emt 0:10:03] [#]} (25... Rb8 $16) 26. Nd6 $1 {[%emt 0:09:13][%mdl 512]} Bxd6 {[%emt 0:00:23]} (26... Rxd6 27. exd6) 27. exd6 {[%emt 0:00:03]} e5 {[%emt 0:01:47]} 28. Nf5 {[%emt 0:01:02]} Rf8 {[%emt 0:00:02]} 29. Kd2 {[%emt 0:06:02]} Rb8 {[%emt 0:02:23]} 30. Rxb8 {[%emt 0:03:48]} Rxb8 {[%emt 0:00:02]} 31. d7 $1 {[%emt 0:00:12]} Bxd7 {[%emt 0:05:01]} (31... Rxb2+ {might work better.} 32. Ke1 (32. Kc1 Bxd7 33. Rxd7 Rh2 $18) 32... Bxd7 33. Rxd7 a5) 32. Rxd7 $18 {[%emt 0:00:09] Strongly threatening d4.} Rxb2+ {[%emt 0:00:02]} 33. Kc3 {[%emt 0:04:12]} Rb1 {[%emt 0:02:07]} (33... Rh2 {was called for.} 34. d4 Rh3) 34. d4 {[%emt 0:04:48]} Rf1 {[%emt 0:00:03]} 35. Ne7+ {[%emt 0:45:22]} Nxe7 {[%emt 0:00:03]} 36. Rxe7 {[%emt 0:00:00]} exd4+ {[%emt 0:00:04]} 37. Kxd4 {[%emt 0:00:00][%mdl 4096] Endgame. KRB-KR} Kh7 {[%emt 0:01:06]} 38. Ke4 {[%emt 0:00:00]} Kg6 {[%emt 0:00:27]} 39. Ra7 {[%emt 0:00:00]} Ra1 {[%emt 0:00:21]} 40. Bd4 {[%emt 0:00:00]} Ra2 {[%emt 0:00:14]} 41. Kf4 {[%emt 0:00:00] Black must now prevent Ra8.} Ra4 $2 {[%emt 0:01:46] [#]} (41... f6 {is a better chance.} 42. gxf6 gxf6) 42. Rd7 $1 {[%emt 0:00:00] And now Rd6+ would win.} Ra5 {[%emt 0:01:13]} 43. Rd6+ {[%emt 0:00:00]} Kh7 {[%emt 0:00:01]} 44. Ke4 {[%emt 0:00:00]} Ra2 {[%emt 0:00:26]} 45. Kf4 $2 {[%emt 0:00:00]} ({White should play} 45. g6+ $18 fxg6 46. Rd7) 45... Rg2 $2 {[%emt 0:00:33][%mdl 8192]} (45... Ra5 $1 $11 {and Black has nothing to worry.} 46. g6+ fxg6) 46. Kf3 {[%emt 0:00:00]} (46. Rxa6 Rg4+ 47. Ke5 Rxh4 $14) (46. Kf5 $142 a5 47. Ra6) 46... Rg4 {[%emt 0:00:07]} 47. Bf2 {[%emt 0:00:00][%cal Od6d4] Rd4! would now be deadly.} Ra4 {[%emt 0:00:14]} 48. Bd4 {[%emt 0:00:00][%cal Og5g6] g6+! is the strong threat.} Ra5 $2 {[%emt 0:01:11] [#]} (48... Ra3+ 49. Kf4 Rh3) 49. g6+ $1 {[%emt 0:00:00]} fxg6 {[%emt 0:00:04]} 50. Rd7 {[%emt 0:00:00]} g5 {[%emt 0:00:29]} 51. Rxg7+ {[%emt 0:00:00]} Kh6 {[%emt 0:00:01] [#]} 52. Rxg5 $1 {[%emt 0:00:00]} Rxg5 {[%emt 0:00:08]} 53. Be3 $1 {[%emt 0:00:00]} Kg6 {[%emt 0:00:03]} 54. hxg5 {[%emt 0:00:00] Weighted Error Value: White=0.26 (precise) /Black=0.65.  Loses game:     	---       	Black=1      Mistake:       	---       	Black=6      Inaccurate:     	White=1     	Black=2      OK:         	White=18    	Black=15     Best:        	White=3     	Black=6      Strong:       	White=3     	---        Brilliant:      	White=1     	---} 1-0

[Event "US Masters 2024"]
[Site "Charlotte"]
[Date "2024.11.29"]
[Round "4.8"]
[White "Durarbayli, Vasif"]
[Black "Daggupati, Balaji"]
[Result "1-0"]
[ECO "B30"]
[WhiteElo "2626"]
[BlackElo "2465"]
[Annotator "TA"]
[PlyCount "87"]
[EventDate "2024.09.23"]
[EventType "swiss"]
[EventCountry "USA"]
[SourceTitle "playchess.com"]
[Source "ChessBase"]
[SourceQuality "1"]
[TimeControl "5400+30"]

{[%evp 9,87,19,13,20,18,21,15,25,26,25,33,3,0,-25,-25,-25,-33,-23,-26,-34,29,24,20,22,30,40,31,31,58,57,40,4,18,14,63,67,165,172,200,222,210,197,224,227,218,218,424,403,454,469,423,377,347,354,514,511,510,498,682,687,865,810,913,786,916,900,777,728,29968,29961,12796,5114,5102,5102,29973,29974,29964,29967,6179,6179]} 1. e4 {[%emt 0:00:46]} c5 {[%emt 0:00:07]} 2. Nf3 {[%emt 0:00:24]} Nc6 {[%emt 0:00:06]} 3. Bb5 {[%emt 0:00:23]} e6 {[%emt 0:00:06]} 4. Bxc6 {[%emt 0:00:26]} bxc6 {[%emt 0:00:07]} 5. b3 {[%emt 0:00:23]} Qc7 {[%emt 0:05:15]} 6. Bb2 {[%emt 0:13:48]} d6 {[%emt 0:03:46]} 7. e5 {[%emt 0:01:47]} d5 {[%emt 0:03:08]} 8. d3 {[%emt 0:06:31] The position is equal.} Nh6 {[%emt 0:13:30][%cal Bg8h6,Bh6f5,Bf5d4][%mdl 32]} 9. Nc3 {[%emt 0:06:53]} Be7 {[%emt 0:02:03]} 10. Qe2 {[%emt 0:02:29]} Ba6 {[%emt 0:08:46]} 11. O-O-O {[%emt 0:02:49]} Nf5 {[%emt 0:04:35]} 12. g4 {[%emt 0:05:25]} Nd4 {[%emt 0:01:52]} 13. Qe3 {[%emt 0:01:51]} Nxf3 {[%emt 0:09:50]} 14. Qxf3 {[%emt 0:00:50]} Qxe5 {[%emt 0:02:21]} ({Better is} 14... O-O $15) 15. Ne2 $11 {[%emt 0:10:01]} Qg5+ {[%emt 0:03:43]} 16. Kb1 $1 {[%emt 0:01:11][%mdl 1024] And now h4 would win. White has compensation.} h5 {[%emt 0:00:45]} 17. Rhg1 {[%emt 0:04:35]} h4 {[%emt 0:00:43]} 18. Qg2 {[%emt 0:03:53]} e5 {[%emt 0:04:46] [#]} 19. f4 $1 {[%emt 0:03:51]} exf4 {[%emt 0:00:24]} 20. Rdf1 {[%emt 0:01:04]} (20. Rde1 $5) 20... Bd6 $1 {[%emt 0:13:50]} 21. Bc1 {[%emt 0:00:59][%cal Re2f4]} c4 {[%emt 0:01:18]} (21... O-O-O $11) 22. Nxf4 $14 {[%emt 0:02:42]} cxb3 {[%emt 0:00:25] White now steadily converts the win.} (22... O-O $1 $14) 23. axb3 $18 {[%emt 0:00:49]} Kd7 {[%emt 0:02:04]} 24. Nh5 {[%emt 0:03:14]} Qg6 {[%emt 0:00:28] [#]} 25. Rf5 $1 {[%emt 0:01:17]} f6 {[%emt 0:02:54][%cal Oa6d3]} 26. Nf4 {[%emt 0:01:49]} Qf7 {[%emt 0:01:34]} 27. g5 {[%emt 0:01:06]} Kc7 $2 {[%emt 0:01:49]} (27... Rae8 28. gxf6 gxf6) 28. gxf6 {[%emt 0:01:19]} gxf6 {[%emt 0:00:30]} 29. Qf2 {[%emt 0:01:25]} Kb7 {[%emt 0:07:16]} (29... Bc8 30. Rxf6 Qh7 31. Ng6) 30. Ng6 {[%emt 0:01:13]} Rh7 {[%emt 0:00:22]} 31. Rxf6 {[%emt 0:01:34]} Qc7 {[%emt 0:00:04]} (31... Qd7 {is a better defense.} 32. Bf4 (32. Nxh4 Be5 $18) 32... Bxf4) 32. Bf4 {[%emt 0:01:04]} (32. Nxh4 Bb5 33. Nf5 Bxh2 $16) 32... Bxf4 {[%emt 0:02:32]} 33. Nxf4 {[%emt 0:00:27] Threatens to win with Ne6.} ({Weaker is} 33. Qxf4 Re8 34. Qf2 (34. Nxh4 Bxd3 35. Qxc7+ Kxc7 $14) 34... Bb5 35. Nxh4 Qe5 $18) (33. Rxf4 Rg8 34. Rf6 (34. Nxh4 $2 {is the wrong capture.} Rxg1+ 35. Ka2 Qa5+ 36. Ra4 Qe1 $19) (34. Rxh4 Rf7 $18) 34... Re8 35. Nxh4 Qb6 $18) 33... Qb6 {[%emt 0:00:04]} 34. d4 {[%emt 0:00:36]} Re8 {[%emt 0:04:06]} 35. Nxd5 {[%emt 0:00:51]} cxd5 {[%emt 0:01:41]} 36. Rxb6+ {[%emt 0:00:12]} axb6 {[%emt 0:00:13]} 37. Qf5 {[%emt 0:19:03][%csl LRd5,LRh7]} Rc7 {[%emt 0:00:04] [#]} 38. Rg8 $3 {[%emt 0:00:00][%mdl 512]} Re1+ {[%emt 0:00:16]} (38... Bb5 39. Rxe8) 39. Kb2 {[%emt 0:00:00]} Ka7 {[%emt 0:00:14]} 40. Qxd5 {[%emt 0:00:00]} (40. Qf8 $142 Bc8 41. Qd6) 40... Bb7 {[%emt 0:00:17]} 41. Qd6 {[%emt 0:00:00]} Rc8 {[%emt 0:00:28]} 42. Rxc8 {[%emt 0:00:00]} Bxc8 {[%emt 0:00:04]} 43. Qc7+ {[%emt 0:00:00]} Bb7 {[%emt 0:00:04]} 44. d5 {[%emt 0:00:00] Weighted Error Value: White=0.05 (flawless) /Black=0.75.  Mistake:       	---       	Black=5      Inaccurate:     	White=2     	Black=2      OK:         	White=9     	Black=12     Best:        	White=5     	---        Strong:       	White=2     	Black=1} 1-0

[Event "US Masters 2024"]
[Site "Charlotte"]
[Date "2024.11.29"]
[Round "4.9"]
[White "Panchanathan, Magesh Chandran"]
[Black "Bruzon Batista, Lazaro"]
[Result "1-0"]
[ECO "E08"]
[WhiteElo "2461"]
[BlackElo "2578"]
[Annotator "TA"]
[PlyCount "73"]
[EventDate "2024.09.23"]
[EventType "swiss"]
[EventCountry "USA"]
[SourceTitle "playchess.com"]
[Source "ChessBase"]
[SourceQuality "1"]
[TimeControl "5400+30"]

{[%evp 18,73,26,19,28,0,14,29,23,26,24,20,27,34,26,26,27,26,28,12,14,29,26,25,51,35,64,52,58,66,73,56,79,71,58,64,58,71,57,74,97,101,112,116,116,126,118,120,120,111,111,114,308,309,306,304,310,302]} 1. Nf3 {[%emt 0:06:45]} Nf6 {[%emt 0:01:08]} 2. g3 {[%emt 0:00:16]} d5 {[%emt 0:05:29]} 3. Bg2 {[%emt 0:00:11]} e6 {[%emt 0:00:09]} 4. d4 {[%emt 0:00:39]} Be7 {[%emt 0:02:12]} 5. c4 {[%emt 0:00:11]} O-O {[%emt 0:00:05]} 6. O-O {[%emt 0:00:05]} c6 {[%emt 0:02:06]} 7. Qc2 {[%emt 0:00:11]} b6 {[%emt 0:00:06]} 8. Rd1 {[%emt 0:00:12]} Nbd7 {[%emt 0:06:02]} 9. b3 {[%emt 0:00:20]} Bb7 {[%emt 0:01:53]} 10. Nc3 {[%emt 0:00:07]} Ba6 {[%emt 0:00:09]} 11. Bb2 {[%emt 0:01:11]} Rc8 {[%emt 0:01:10]} 12. e4 {[%emt 0:22:48]} dxc4 {[%emt 0:01:00] White has an edge.} 13. Nd2 {[%emt 0:01:58]} b5 {[%emt 0:01:06]} 14. bxc4 {[%emt 0:00:25]} bxc4 {[%emt 0:00:11]} 15. Na4 {[%emt 0:04:21]} c5 {[%emt 0:09:06]} 16. d5 {[%emt 0:01:16]} exd5 {[%emt 0:00:14]} 17. exd5 {[%emt 0:00:09]} Ne8 {[%emt 0:09:26][%cal Bf6e8,Be8d6,Bd6c4][%mdl 32]} 18. Nxc4 {[%emt 0:01:13]} Bxc4 {[%emt 0:00:04]} 19. Qxc4 {[%emt 0:00:05]} Nd6 {[%emt 0:00:02]} 20. Qa6 {[%emt 0:02:21][%cal Og2h3]} Rc7 {[%emt 0:16:55]} 21. Bc3 {[%emt 0:04:47]} Nb8 {[%emt 0:03:23]} 22. Qa5 {[%emt 0:01:27]} Nc4 {[%emt 0:00:16]} 23. Qb5 {[%emt 0:00:12]} Nd6 {[%emt 0:00:04]} 24. Qb2 {[%emt 0:15:03] White has more active pieces.} Rb7 {[%emt 0:04:05]} 25. Qe2 {[%emt 0:01:15]} Nd7 {[%emt 0:00:45]} 26. Rab1 {[%emt 0:00:21]} Rxb1 {[%emt 0:01:21]} 27. Rxb1 {[%emt 0:00:17]} c4 {[%emt 0:02:27]} 28. Qe3 $40 {[%emt 0:01:24][%mdl 128] White is out for blood.} Bf6 {[%emt 0:15:20]} 29. Qxa7 {[%emt 0:03:32]} Ne5 {[%emt 0:00:46]} 30. Ba5 {[%emt 0:06:51] A strong pair of Bishops.} Qc8 {[%emt 0:01:53]} 31. Bb4 {[%emt 0:04:00]} Qf5 {[%emt 0:00:50]} 32. Rf1 {[%emt 0:00:06]} Rd8 {[%emt 0:00:25][%cal Bf8d8,Bd8d6,Bd6d7][%mdl 32]} 33. Bxd6 {[%emt 0:00:32]} Rxd6 {[%emt 0:00:04]} 34. Nc5 {[%emt 0:00:07][%cal Ba4c5,Bc5b7,Bb7c5][%mdl 32] Nb7 would now be deadly.} h5 $2 {[%emt 0:03:52] [#]} (34... Rd8 $16) 35. Nb7 $1 $18 {[%emt 0:01:24] White has a decisive advantage.} Rd7 {[%emt 0:00:17]} 36. Qa8+ {[%emt 0:00:35]} Kh7 {[%emt 0:14:09] Strongly threatening ...h4.} 37. Nc5 {[%emt 0:00:05] Weighted Error Value: White=0.04 (flawless) /Black=0.17 (very precise) .  Loses game:     	---       	Black=1      Inaccurate:     	White=1     	Black=2      OK:         	White=13    	Black=14     Best:        	White=2     	Black=1      Strong:       	White=1     	---} 1-0

[Event "US Masters 2024"]
[Site "Charlotte"]
[Date "2024.11.29"]
[Round "4.10"]
[White "Shlyakhtenko, Robert"]
[Black "Stremavicius, Titas"]
[Result "1/2-1/2"]
[ECO "D31"]
[WhiteElo "2422"]
[BlackElo "2545"]
[Annotator "TA"]
[PlyCount "153"]
[EventDate "2024.09.23"]
[EventType "swiss"]
[EventCountry "USA"]
[SourceTitle "playchess.com"]
[Source "ChessBase"]
[SourceQuality "1"]
[TimeControl "5400+30"]

{[%evp 81,153,70,45,27,43,42,48,0,78,0,0,0,0,0,0,-8,-8,-8,-8,-8,-8,-19,-33,-66,-25,-80,0,0,0,0,0,0,0,0,0,0,0,0,0,0,0,0,0,0,0,0,0,0,0,0,0,0,0,0,0,0,0,0,0,0,0,0,0,0,0,0,0,0,0,0,0,0,0,0]} 1. d4 {[%emt 0:00:02]} d5 {[%emt 0:05:48]} 2. c4 {[%emt 0:00:07]} e6 {[%emt 0:00:05]} 3. Nc3 {[%emt 0:00:08]} Be7 {[%emt 0:00:05]} 4. cxd5 {[%emt 1:32:13]} exd5 {[%emt 0:00:05]} 5. Bf4 {[%emt 0:00:00]} c6 {[%emt 0:00:03]} 6. e3 {[%emt 0:00:00]} Bf5 {[%emt 0:00:05]} 7. f3 {[%emt 0:00:00] D31: Queen's Gambit Declined: Semi-Slav without ...Nf6 (+ Marshall Gambit and Noteboom) and Exchange Variation lines without ...Nf6.} Bg6 {[%emt 0:04:08]} 8. Bd3 {[%emt 0:00:00]} Nf6 {[%emt 0:12:59]} 9. g4 {[%emt 0:00:00]} Bd6 $146 {[%emt 0:04:19]} ({Predecessor:} 9... Bxd3 10. Qxd3 O-O 11. Nge2 Nbd7 12. h4 Ne8 13. h5 Bd6 14. Kf2 b5 15. Rac1 a5 {½-½ Mamedyarov,S (2808)-Giri,A (2782) Leuven GCT rapid 2018 (3)}) 10. Nge2 {[%emt 0:00:00]} Bxf4 {[%emt 0:00:24]} 11. Nxf4 {[%emt 0:00:00]} Qe7 {[%emt 0:04:30]} 12. Kf2 {[%emt 0:00:00]} Bxd3 {[%emt 0:01:51]} 13. Qxd3 {[%emt 0:00:00]} O-O {[%emt 0:00:55]} 14. h4 {[%emt 0:00:00]} Nbd7 {[%emt 0:04:20]} 15. g5 {[%emt 0:00:00]} Ne8 {[%emt 0:00:07]} 16. e4 {[%emt 0:00:00]} dxe4 {[%emt 0:02:15]} 17. fxe4 {[%emt 0:00:00]} Nc7 {[%emt 0:00:16]} 18. Kg2 {[%emt 0:00:00]} Ne6 {[%emt 0:06:37]} 19. Rhf1 {[%emt 0:00:00]} Rad8 {[%emt 0:04:15]} 20. Nxe6 {[%emt 0:00:00]} Qxe6 {[%emt 0:00:46]} 21. Rad1 {[%emt 0:00:00]} Nb6 {[%emt 0:09:36]} 22. Qf3 {[%emt 0:00:00]} Qe7 {[%emt 0:05:15]} 23. Ne2 {[%emt 0:00:00]} c5 {[%emt 0:01:52]} 24. d5 {[%emt 0:00:00]} Nc4 {[%emt 0:00:11]} 25. Ng3 {[%emt 0:00:00]} Qe5 {[%emt 0:01:42]} 26. Rf2 {[%emt 0:00:00]} Nd6 {[%emt 0:00:48]} 27. Rc1 {[%emt 0:00:00]} b6 {[%emt 0:01:52]} 28. Qc3 {[%emt 0:00:00]} Rfe8 {[%emt 0:00:38]} 29. Re2 {[%emt 0:00:00]} g6 {[%emt 0:01:25]} 30. Qd2 {[%emt 0:00:00]} Re7 {[%emt 0:02:55]} 31. Rf1 {[%emt 0:00:00]} Rde8 {[%emt 0:02:59]} 32. Rf6 {[%emt 0:00:37]} Nc4 {[%emt 0:00:11]} 33. Qc1 {[%emt 0:01:30]} Qd4 {[%emt 0:00:39]} 34. b3 {[%emt 0:03:07]} Ne5 {[%emt 0:00:37]} 35. h5 {[%emt 0:00:51]} Nd3 {[%emt 0:02:18]} 36. Qe3 {[%emt 0:02:29]} Qxe3 {[%emt 0:03:19]} 37. Rxe3 {[%emt 0:00:03]} Nb4 {[%emt 0:00:29]} 38. d6 {[%emt 0:04:18]} Rd7 {[%emt 0:00:19]} 39. e5 {[%emt 0:00:16]} Nc6 {[%emt 0:13:17]} 40. Rff3 {[%emt 0:01:41]} Rxe5 {[%emt 0:04:04]} 41. Rxe5 {[%emt 0:02:39]} Nxe5 {[%emt 0:00:01]} 42. Re3 {[%emt 0:00:00]} Ng4 $1 {[%emt 0:00:06]} 43. Re8+ {[%emt 0:00:09]} Kg7 {[%emt 0:00:01]} 44. h6+ {[%emt 0:01:06]} Nxh6 {[%emt 0:00:01] [#]} 45. gxh6+ {[%emt 0:00:14]} ({Better is} 45. Ne4 $1 $16 Ng4 46. Re7) 45... Kxh6 $11 {[%emt 0:00:06]} 46. Re7 {[%emt 0:00:22]} (46. Ne4 $5 f5 $8 47. Re7 $11) 46... Rxd6 {[%emt 0:00:04]} 47. Rxf7 {[%emt 0:00:09]} Rd2+ {[%emt 0:05:22]} 48. Rf2 {[%emt 0:00:10]} Rxf2+ {[%emt 0:00:00]} 49. Kxf2 {[%emt 0:00:02]} Kg5 {[%emt 0:00:00]} 50. Kf3 {[%emt 0:00:27]} Kf6 {[%emt 0:00:00]} 51. Kf4 {[%emt 0:01:18]} h5 {[%emt 0:00:00]} 52. Ne4+ {[%emt 0:00:34]} Ke6 {[%emt 0:00:00]} 53. Nc3 {[%emt 0:00:05] [#]} h4 {[%emt 0:00:00]} (53... Kd7 $1 $17 54. Nb5 (54. Kg5 Kc6 $16) 54... a6) 54. Kg4 $11 {[%emt 0:00:23]} g5 {[%emt 0:00:46]} 55. Ne4 {[%emt 0:01:36]} Kd5 {[%emt 0:00:49]} 56. Nxg5 {[%emt 0:00:03]} Kd4 {[%emt 0:00:15]} 57. Kxh4 {[%emt 0:00:21]} Kc3 {[%emt 0:00:06]} 58. Kg3 {[%emt 0:00:22]} Kb2 {[%emt 0:00:03]} 59. Ne4 {[%emt 0:00:07]} Kxa2 {[%emt 0:00:36]} 60. Nd2 {[%emt 0:00:03]} Kb2 {[%emt 0:02:19]} 61. Kf3 {[%emt 0:00:04]} Kc2 {[%emt 0:00:14]} 62. Ke2 {[%emt 0:01:02]} a5 {[%emt 0:00:55]} 63. Nc4 {[%emt 0:02:17]} Kxb3 {[%emt 0:00:11]} 64. Kd3 $1 {[%emt 0:00:30]} a4 {[%emt 0:00:05]} 65. Nd2+ {[%emt 0:00:16]} Kb2 {[%emt 0:00:51]} (65... Ka2 $5 66. Kc3 $8 b5 $11) 66. Nc4+ $1 {[%emt 0:00:17]} Kb3 {[%emt 0:00:59]} (66... Kc1 $5 67. Na3 $8 (67. Nxb6 $2 {too greedy.} a3 $19) 67... Kb2 68. Nc4+ Kb3 69. Nd2+ Kb2 (69... Kb4 70. Kc2 $11) 70. Nc4+ $11) 67. Nd2+ {[%emt 0:02:02]} Kb4 {[%emt 0:00:45]} (67... Ka2 $5 68. Kc3 $8 b5 $11) 68. Kc2 {[%emt 0:00:00]} c4 {[%emt 0:00:45]} 69. Nb1 {[%emt 0:00:00]} b5 {[%emt 0:00:41]} (69... a3 $5 70. Nc3 $8 b5 71. Na2+ Ka4 $11) 70. Kb2 {[%emt 0:00:00]} Kc5 {[%emt 0:00:32]} 71. Ka3 {[%emt 0:00:00]} c3 {[%emt 0:00:36]} (71... Kd4 $5 72. Kb4 $8 Kd3 $11) 72. Nxc3 {[%emt 0:00:06]} b4+ {[%emt 0:00:03]} 73. Kb2 {[%emt 0:00:26]} a3+ {[%emt 0:00:13]} 74. Kb3 {[%emt 0:00:05]} bxc3 {[%emt 0:00:03]} 75. Kxc3 {[%emt 0:00:04]} a2 {[%emt 0:00:03]} 76. Kb2 {[%emt 0:00:06]} a1=R {[%emt 0:00:03]} 77. Kxa1 {[%emt 0:00:06]} 1/2-1/2